Workbook

Sheet Planilha1
S7: =ABS(B20-I20) -> 3.749906038
U8: =B14 -> 0.0001
Z9: =
B10: Esférico | E10: Add
R12: =INDEX(A23:A127,W12) -> 0 | T12: =INDEX(T14:T24,U12) -> 1.498 | U12: 1 | W12: 61 | X12: 1 | Z12: 0.5 | AA12: =INDEX(Z12:Z26,X12) -> 0.5
B13: Base Real 1.530 | E13: Sagita 1.530 | H13: Base Real Sag 1.530 | K13: Diametro do copo sagometro | Z13: 0.75
B14: 0.0001 | E14: 0.0001 | H14: =X23 -> 0.0004711111111 | L14: 30 | T14: 1.498 | Z14: 1
T15: 1.502 | Z15: 1.25
B16: Índice da lente | T16: 1.53 | Z16: 1.5
T17: 1.56 | V17: Formula 1 | X17: =530/B14 -> 5300000 | Z17: 1.75
T18: 1.586 | Z18: 2
B19: Base Real no indice | E19: Base Real Sag no indice | I19: Base ideal no indice | T19: 1.6 | V19: Formula 2 | X19: =(T12-1)/X17*1000 -> 9.396226415e-05 | Z19: 2.25
B20: =X19 -> 9.396226415e-05 | E20: =X25 -> 0.0004426666666 | I20: =VLOOKUP(R12,A22:P123,MATCH(AA12,A22:P22),FALSE) -> 3.75 | T20: 1.61 | Z20: 2.5
T21: 1.668 | V21: formula 3 | X21: =((E14^2)+((L14/2)^2))/(2*E14) -> 1125000 | Z21: 2.75
B22: 0.5 | C22: 0.75 | D22: 1 | E22: 1.25 | F22: 1.5 | G22: 1.75 | H22: 2 | I22: 2.25 | J22: 2.5 | K22: 2.75 | L22: 3 | M22: 3.25 | N22: 3.5 | O22: 3.75 | P22: 4 | T22: 1.67 | Z22: 3
A23: =A24+0.25 -> 15 | B23: =1.5+(A23+($B$22/2)) -> 16.75 | C23: =1.5+(A23+($C$22/2)) -> 16.875 | D23: =1.5+(A23+($D$22/2)) -> 17 | E23: =1.5+(A23+($E$22/2)) -> 17.125 | F23: =1.5+(A23+($F$22/2)) -> 17.25 | G23: =1.5+(A23+($G$22/2)) -> 17.375 | H23: =1.5+(A23+($H$22/2)) -> 17.5 | I23: =2+(A23+($I$22/2)) -> 18.125 | J23: =2+(A23+($J$22/2)) -> 18.25 | K23: =2+(A23+($K$22/2)) -> 18.375 | L23: =2+(A23+($L$22/2)) -> 18.5 | M23: =2+(A23+($M$22/2)) -> 18.625 | N23: =2+(A23+($N$22/2)) -> 18.75 | O23: =2+(A23+($O$22/2)) -> 18.875 | P23: =2+(A23+($P$22/2)) -> 19 | T23: 1.736 | V23: formula 4 | X23: =530/X21 -> 0.0004711111111 | Z23: 3.25
A24: =A25+0.25 -> 14.75 | B24: =1.5+(A24+($B$22/2)) -> 16.5 | C24: =1.5+(A24+($C$22/2)) -> 16.625 | D24: =1.5+(A24+($D$22/2)) -> 16.75 | E24: =1.5+(A24+($E$22/2)) -> 16.875 | F24: =1.5+(A24+($F$22/2)) -> 17 | G24: =1.5+(A24+($G$22/2)) -> 17.125 | H24: =1.5+(A24+($H$22/2)) -> 17.25 | I24: =2+(A24+($I$22/2)) -> 17.875 | J24: =2+(A24+($J$22/2)) -> 18 | K24: =2+(A24+($K$22/2)) -> 18.125 | L24: =2+(A24+($L$22/2)) -> 18.25 | M24: =2+(A24+($M$22/2)) -> 18.375 | N24: =2+(A24+($N$22/2)) -> 18.5 | O24: =2+(A24+($O$22/2)) -> 18.625 | P24: =2+(A24+($P$22/2)) -> 18.75 | T24: 1.74 | Z24: 3.5
A25: 14.5 | B25: 16.25 | C25: 16.375 | D25: 16.5 | E25: 16.625 | F25: 16.75 | G25: 16.875 | H25: 17 | I25: 17.625 | J25: 17.75 | K25: 17.875 | L25: 18 | M25: 18.125 | N25: 18.25 | O25: 18.375 | P25: 18.5 | V25: formula 5 | X25: =(T12-1)/X21*1000 -> 0.0004426666666 | Z25: 3.75
A26: 14.25 | B26: 16 | C26: 16.125 | D26: 16.25 | E26: 16.375 | F26: 16.5 | G26: 16.625 | H26: 16.75 | I26: 17.375 | J26: 17.5 | K26: 17.625 | L26: 17.75 | M26: 17.875 | N26: 18 | O26: 18.125 | P26: 18.25 | Z26: 4
A27: =A28+0.25 -> 14 | B27: 15.75 | C27: 15.875 | D27: 16 | E27: 16.125 | F27: 16.25 | G27: 16.375 | H27: 16.5 | I27: 17.125 | J27: 17.25 | K27: 17.375 | L27: 17.5 | M27: 17.625 | N27: 17.75 | O27: 17.875 | P27: 18
A28: 13.75 | B28: 15.5 | C28: 15.625 | D28: 15.75 | E28: 15.875 | F28: 16 | G28: 16.125 | H28: 16.25 | I28: 16.875 | J28: 17 | K28: 17.125 | L28: 17.25 | M28: 17.375 | N28: 17.5 | O28: 17.625 | P28: 17.75
A29: 13.5 | B29: 15.25 | C29: 15.375 | D29: 15.5 | E29: 15.625 | F29: 15.75 | G29: 15.875 | H29: 16 | I29: 16.625 | J29: 16.75 | K29: 16.875 | L29: 17 | M29: 17.125 | N29: 17.25 | O29: 17.375 | P29: 17.5
A30: 13.25 | B30: 15 | C30: 15.125 | D30: 15.25 | E30: 15.375 | F30: 15.5 | G30: 15.625 | H30: 15.75 | I30: 16.375 | J30: 16.5 | K30: 16.625 | L30: 16.75 | M30: 16.875 | N30: 17 | O30: 17.125 | P30: 17.25
A31: 13 | B31: 14.75 | C31: 14.875 | D31: 15 | E31: 15.125 | F31: 15.25 | G31: 15.375 | H31: 15.5 | I31: 16.125 | J31: 16.25 | K31: 16.375 | L31: 16.5 | M31: 16.625 | N31: 16.75 | O31: 16.875 | P31: 17
A32: 12.75 | B32: 14.5 | C32: 14.625 | D32: 14.75 | E32: 14.875 | F32: 15 | G32: 15.125 | H32: 15.25 | I32: 15.875 | J32: 16 | K32: 16.125 | L32: 16.25 | M32: 16.375 | N32: 16.5 | O32: 16.625 | P32: 16.75
A33: 12.5 | B33: 14.25 | C33: 14.375 | D33: 14.5 | E33: 14.625 | F33: 14.75 | G33: 14.875 | H33: 15 | I33: 15.625 | J33: 15.75 | K33: 15.875 | L33: 16 | M33: 16.125 | N33: 16.25 | O33: 16.375 | P33: 16.5
A34: 12.25 | B34: 14 | C34: 14.125 | D34: 14.25 | E34: 14.375 | F34: 14.5 | G34: 14.625 | H34: 14.75 | I34: 15.375 | J34: 15.5 | K34: 15.625 | L34: 15.75 | M34: 15.875 | N34: 16 | O34: 16.125 | P34: 16.25
A35: 12 | B35: 13.75 | C35: 13.875 | D35: 14 | E35: 14.125 | F35: 14.25 | G35: 14.375 | H35: 14.5 | I35: 15.125 | J35: 15.25 | K35: 15.375 | L35: 15.5 | M35: 15.625 | N35: 15.75 | O35: 15.875 | P35: 16
A36: 11.75 | B36: 13.5 | C36: 13.625 | D36: 13.75 | E36: 13.875 | F36: 14 | G36: 14.125 | H36: 14.25 | I36: 14.875 | J36: 15 | K36: 15.125 | L36: 15.25 | M36: 15.375 | N36: 15.5 | O36: 15.625 | P36: 15.75
A37: 11.5 | B37: 13.25 | C37: 13.375 | D37: 13.5 | E37: 13.625 | F37: 13.75 | G37: 13.875 | H37: 14 | I37: 14.625 | J37: 14.75 | K37: 14.875 | L37: 15 | M37: 15.125 | N37: 15.25 | O37: 15.375 | P37: 15.5
A38: 11.25 | B38: 13 | C38: 13.125 | D38: 13.25 | E38: 13.375 | F38: 13.5 | G38: 13.625 | H38: 13.75 | I38: 14.375 | J38: 14.5 | K38: 14.625 | L38: 14.75 | M38: 14.875 | N38: 15 | O38: 15.125 | P38: 15.25
A39: 11 | B39: 12.75 | C39: 12.875 | D39: 13 | E39: 13.125 | F39: 13.25 | G39: 13.375 | H39: 13.5 | I39: 14.125 | J39: 14.25 | K39: 14.375 | L39: 14.5 | M39: 14.625 | N39: 14.75 | O39: 14.875 | P39: 15
A40: 10.75 | B40: 12.5 | C40: 12.625 | D40: 12.75 | E40: 12.875 | F40: 13 | G40: 13.125 | H40: 13.25 | I40: 13.875 | J40: 14 | K40: 14.125 | L40: 14.25 | M40: 14.375 | N40: 14.5 | O40: 14.625 | P40: 14.75
A41: 10.5 | B41: 12.25 | C41: 12.375 | D41: 12.5 | E41: 12.625 | F41: 12.75 | G41: 12.875 | H41: 13 | I41: 13.625 | J41: 13.75 | K41: 13.875 | L41: 14 | M41: 14.125 | N41: 14.25 | O41: 14.375 | P41: 14.5
A42: 10.25 | B42: 12 | C42: 12.125 | D42: 12.25 | E42: 12.375 | F42: 12.5 | G42: 12.625 | H42: 12.75 | I42: 13.375 | J42: 13.5 | K42: 13.625 | L42: 13.75 | M42: 13.875 | N42: 14 | O42: 14.125 | P42: 14.25
A43: 10 | B43: 11.75 | C43: 11.875 | D43: 12 | E43: 12.125 | F43: 12.25 | G43: 12.375 | H43: 12.5 | I43: 13.125 | J43: 13.25 | K43: 13.375 | L43: 13.5 | M43: 13.625 | N43: 13.75 | O43: 13.875 | P43: 14
A44: 9.75 | B44: 11.5 | C44: 11.625 | D44: 11.75 | E44: 11.875 | F44: 12 | G44: 12.125 | H44: 12.25 | I44: 12.875 | J44: 13 | K44: 13.125 | L44: 13.25 | M44: 13.375 | N44: 13.5 | O44: 13.625 | P44: 13.75
A45: 9.5 | B45: 11.25 | C45: 11.375 | D45: 11.5 | E45: 11.625 | F45: 11.75 | G45: 11.875 | H45: 12 | I45: 12.625 | J45: 12.75 | K45: 12.875 | L45: 13 | M45: 13.125 | N45: 13.25 | O45: 13.375 | P45: 13.5
A46: 9.25 | B46: 11 | C46: 11.125 | D46: 11.25 | E46: 11.375 | F46: 11.5 | G46: 11.625 | H46: 11.75 | I46: 12.375 | J46: 12.5 | K46: 12.625 | L46: 12.75 | M46: 12.875 | N46: 13 | O46: 13.125 | P46: 13.25
A47: 9 | B47: 10.75 | C47: 10.875 | D47: 11 | E47: 11.125 | F47: 11.25 | G47: 11.375 | H47: 11.5 | I47: 12.125 | J47: 12.25 | K47: 12.375 | L47: 12.5 | M47: 12.625 | N47: 12.75 | O47: 12.875 | P47: 13
A48: 8.75 | B48: 10.5 | C48: 10.625 | D48: 10.75 | E48: 10.875 | F48: 11 | G48: 11.125 | H48: 11.25 | I48: 11.875 | J48: 12 | K48: 12.125 | L48: 12.25 | M48: 12.375 | N48: 12.5 | O48: 12.625 | P48: 12.75
A49: 8.5 | B49: 10.25 | C49: 10.375 | D49: 10.5 | E49: 10.625 | F49: 10.75 | G49: 10.875 | H49: 11 | I49: 11.625 | J49: 11.75 | K49: 11.875 | L49: 12 | M49: 12.125 | N49: 12.25 | O49: 12.375 | P49: 12.5
A50: =A51+0.25 -> 8.25 | B50: 10 | C50: 10.125 | D50: 10.25 | E50: 10.375 | F50: 10.5 | G50: 10.625 | H50: 10.75 | I50: 11.375 | J50: 11.5 | K50: 11.625 | L50: 11.75 | M50: 11.875 | N50: 12 | O50: 12.125 | P50: 12.25
A51: 8 | B51: 9.75 | C51: 9.875 | D51: 10 | E51: 10.125 | F51: 10.25 | G51: 10.375 | H51: 10.5 | I51: 11.125 | J51: 11.25 | K51: 11.375 | L51: 11.5 | M51: 11.625 | N51: 11.75 | O51: 11.875 | P51: 12
A52: =A51-0.25 -> 7.75 | B52: 9.5 | C52: 9.625 | D52: 9.75 | E52: 9.875 | F52: 10 | G52: 10.125 | H52: 10.25 | I52: 10.875 | J52: 11 | K52: 11.125 | L52: 11.25 | M52: 11.375 | N52: 11.5 | O52: 11.625 | P52: 11.75
A53: =A52-0.25 -> 7.5 | B53: 9.25 | C53: 9.375 | D53: 9.5 | E53: 9.625 | F53: 9.75 | G53: 9.875 | H53: 10 | I53: 10.625 | J53: 10.75 | K53: 10.875 | L53: 11 | M53: 11.125 | N53: 11.25 | O53: 11.375 | P53: 11.5
A54: 7.25 | B54: 9 | C54: 9.125 | D54: 9.25 | E54: 9.375 | F54: 9.5 | G54: 9.625 | H54: 9.75 | I54: 10.375 | J54: 10.5 | K54: 10.625 | L54: 10.75 | M54: 10.875 | N54: 11 | O54: 11.125 | P54: 11.25
A55: 7 | B55: 8.75 | C55: 8.875 | D55: 9 | E55: 9.125 | F55: 9.25 | G55: 9.375 | H55: 9.5 | I55: 10.125 | J55: 10.25 | K55: 10.375 | L55: 10.5 | M55: 10.625 | N55: 10.75 | O55: 10.875 | P55: 11
A56: 6.75 | B56: 8.5 | C56: 8.625 | D56: 8.75 | E56: 8.875 | F56: 9 | G56: 9.125 | H56: 9.25 | I56: 9.875 | J56: 10 | K56: 10.125 | L56: 10.25 | M56: 10.375 | N56: 10.5 | O56: 10.625 | P56: 10.75
A57: 6.5 | B57: 8.25 | C57: 8.375 | D57: 8.5 | E57: 8.625 | F57: 8.75 | G57: 8.875 | H57: 9 | I57: 9.625 | J57: 9.75 | K57: 9.875 | L57: 10 | M57: 10.125 | N57: 10.25 | O57: 10.375 | P57: 10.5
A58: 6.25 | B58: 8 | C58: 8.125 | D58: 8.25 | E58: 8.375 | F58: 8.5 | G58: 8.625 | H58: 8.75 | I58: 9.375 | J58: 9.5 | K58: 9.625 | L58: 9.75 | M58: 9.875 | N58: 10 | O58: 10.125 | P58: 10.25
A59: 6 | B59: 7.75 | C59: 7.875 | D59: 8 | E59: 8.125 | F59: 8.25 | G59: 8.375 | H59: 8.5 | I59: 9.125 | J59: 9.25 | K59: 9.375 | L59: 9.5 | M59: 9.625 | N59: 9.75 | O59: 9.875 | P59: 10
A60: 5.75 | B60: 7.5 | C60: 7.625 | D60: 7.75 | E60: 7.875 | F60: 8 | G60: 8.125 | H60: 8.25 | I60: 8.875 | J60: 9 | K60: 9.125 | L60: 9.25 | M60: 9.375 | N60: 9.5 | O60: 9.625 | P60: 9.75
A61: 5.5 | B61: 7.25 | C61: 7.375 | D61: 7.5 | E61: 7.625 | F61: 7.75 | G61: 7.875 | H61: 8 | I61: 8.625 | J61: 8.75 | K61: 8.875 | L61: 9 | M61: 9.125 | N61: 9.25 | O61: 9.375 | P61: 9.5
A62: 5.25 | B62: 7 | C62: 7.125 | D62: 7.25 | E62: 7.375 | F62: 7.5 | G62: 7.625 | H62: 7.75 | I62: 8.375 | J62: 8.5 | K62: 8.625 | L62: 8.75 | M62: 8.875 | N62: 9 | O62: 9.125 | P62: 9.25
A63: 5 | B63: 6.75 | C63: 6.875 | D63: 7 | E63: 7.125 | F63: 7.25 | G63: 7.375 | H63: 7.5 | I63: 8.125 | J63: 8.25 | K63: 8.375 | L63: 8.5 | M63: 8.625 | N63: 8.75 | O63: 8.875 | P63: 9
A64: 4.75 | B64: 6.5 | C64: 6.625 | D64: 6.75 | E64: 6.875 | F64: 7 | G64: 7.125 | H64: 7.25 | I64: 7.875 | J64: 8 | K64: 8.125 | L64: 8.25 | M64: 8.375 | N64: 8.5 | O64: 8.625 | P64: 8.75
A65: 4.5 | B65: 6.25 | C65: 6.375 | D65: 6.5 | E65: 6.625 | F65: 6.75 | G65: 6.875 | H65: 7 | I65: 7.625 | J65: 7.75 | K65: 7.875 | L65: 8 | M65: 8.125 | N65: 8.25 | O65: 8.375 | P65: 8.5
A66: 4.25 | B66: 6 | C66: 6.125 | D66: 6.25 | E66: 6.375 | F66: 6.5 | G66: 6.625 | H66: 6.75 | I66: 7.375 | J66: 7.5 | K66: 7.625 | L66: 7.75 | M66: 7.875 | N66: 8 | O66: 8.125 | P66: 8.25
A67: 4 | B67: 5.75 | C67: 5.875 | D67: 6 | E67: 6.125 | F67: 6.25 | G67: 6.375 | H67: 6.5 | I67: 7.125 | J67: 7.25 | K67: 7.375 | L67: 7.5 | M67: 7.625 | N67: 7.75 | O67: 7.875 | P67: 8
A68: 3.75 | B68: 5.5 | C68: 5.625 | D68: 5.75 | E68: 5.875 | F68: 6 | G68: 6.125 | H68: 6.25 | I68: 6.875 | J68: 7 | K68: 7.125 | L68: 7.25 | M68: 7.375 | N68: 7.5 | O68: 7.625 | P68: 7.75
A69: 3.5 | B69: =3.5+((A69+$B$22)/2) -> 5.5 | C69: =3.5+((A69+$C$22)/2) -> 5.625 | D69: =3.5+((A69+$D$22)/2) -> 5.75 | E69: =3.5+((A69+$E$22)/2) -> 5.875 | F69: =3.5+((A69+$F$22)/2) -> 6 | G69: =3.5+((A69+$G$22)/2) -> 6.125 | H69: =3.5+((A69+$H$22)/2) -> 6.25 | I69: =3.5+((A69+$I$22)/2) -> 6.375 | J69: =3.5+((A69+$J$22)/2) -> 6.5 | K69: =3.5+((A69+$K$22)/2) -> 6.625 | L69: =3.5+((A69+$L$22)/2) -> 6.75 | M69: =3.5+((A69+$M$22)/2) -> 6.875 | N69: =3.5+((A69+$N$22)/2) -> 7 | O69: =3.5+((A69+$O$22)/2) -> 7.125 | P69: =3.5+((A69+$P$22)/2) -> 7.25
A70: 3.25 | B70: =3.5+((A70+$B$22)/2) -> 5.375 | C70: =3.5+((A70+$C$22)/2) -> 5.5 | D70: =3.5+((A70+$D$22)/2) -> 5.625 | E70: =3.5+((A70+$E$22)/2) -> 5.75 | F70: =3.5+((A70+$F$22)/2) -> 5.875 | G70: =3.5+((A70+$G$22)/2) -> 6 | H70: =3.5+((A70+$H$22)/2) -> 6.125 | I70: =3.5+((A70+$I$22)/2) -> 6.25 | J70: =3.5+((A70+$J$22)/2) -> 6.375 | K70: =3.5+((A70+$K$22)/2) -> 6.5 | L70: =3.5+((A70+$L$22)/2) -> 6.625 | M70: =3.5+((A70+$M$22)/2) -> 6.75 | N70: =3.5+((A70+$N$22)/2) -> 6.875 | O70: =3.5+((A70+$O$22)/2) -> 7 | P70: =3.5+((A70+$P$22)/2) -> 7.125
A71: 3 | B71: 5.25 | C71: 5.375 | D71: 5.5 | E71: 5.625 | F71: 5.75 | G71: 5.875 | H71: 6 | I71: 6.125 | J71: 6.25 | K71: 6.375 | L71: 6.5 | M71: 6.625 | N71: 6.75 | O71: 6.875 | P71: 7
A72: 2.75 | B72: 5.125 | C72: 5.25 | D72: 5.375 | E72: 5.5 | F72: 5.625 | G72: 5.75 | H72: 5.875 | I72: 6 | J72: 6.125 | K72: 6.25 | L72: 6.375 | M72: 6.5 | N72: 6.625 | O72: 6.75 | P72: 6.875
A73: 2.5 | B73: 5 | C73: 5.125 | D73: 5.25 | E73: 5.375 | F73: 5.5 | G73: 5.625 | H73: 5.75 | I73: 5.875 | J73: 6 | K73: 6.125 | L73: 6.25 | M73: 6.375 | N73: 6.5 | O73: 6.625 | P73: 6.75
A74: 2.25 | B74: 4.875 | C74: 5 | D74: 5.125 | E74: 5.25 | F74: 5.375 | G74: 5.5 | H74: 5.625 | I74: 5.75 | J74: 5.875 | K74: 6 | L74: 6.125 | M74: 6.25 | N74: 6.375 | O74: 6.5 | P74: 6.625
A75: 2 | B75: 4.75 | C75: 4.875 | D75: 5 | E75: 5.125 | F75: 5.25 | G75: 5.375 | H75: 5.5 | I75: 5.625 | J75: 5.75 | K75: 5.875 | L75: 6 | M75: 6.125 | N75: 6.25 | O75: 6.375 | P75: 6.5
A76: 1.75 | B76: 4.625 | C76: 4.75 | D76: 4.875 | E76: 5 | F76: 5.125 | G76: 5.25 | H76: 5.375 | I76: 5.5 | J76: 5.625 | K76: 5.75 | L76: 5.875 | M76: 6 | N76: 6.125 | O76: 6.25 | P76: 6.375
A77: 1.5 | B77: 4.5 | C77: 4.625 | D77: 4.75 | E77: 4.875 | F77: 5 | G77: 5.125 | H77: 5.25 | I77: 5.375 | J77: 5.5 | K77: 5.625 | L77: 5.75 | M77: 5.875 | N77: 6 | O77: 6.125 | P77: 6.25
A78: 1.25 | B78: 4.375 | C78: 4.5 | D78: 4.625 | E78: 4.75 | F78: 4.875 | G78: 5 | H78: 5.125 | I78: 5.25 | J78: 5.375 | K78: 5.5 | L78: 5.625 | M78: 5.75 | N78: 5.875 | O78: 6 | P78: 6.125
A79: 1 | B79: 4.25 | C79: 4.375 | D79: 4.5 | E79: 4.625 | F79: 4.75 | G79: 4.875 | H79: 5 | I79: 5.125 | J79: 5.25 | K79: 5.375 | L79: 5.5 | M79: 5.625 | N79: 5.75 | O79: 5.875 | P79: 6
A80: 0.75 | B80: 4.125 | C80: 4.25 | D80: 4.375 | E80: 4.5 | F80: 4.625 | G80: 4.75 | H80: 4.875 | I80: 5 | J80: 5.125 | K80: 5.25 | L80: 5.375 | M80: 5.5 | N80: 5.625 | O80: 5.75 | P80: 5.875
A81: 0.5 | B81: 4 | C81: 4.125 | D81: 4.25 | E81: 4.375 | F81: 4.5 | G81: 4.625 | H81: 4.75 | I81: 4.875 | J81: 5 | K81: 5.125 | L81: 5.25 | M81: 5.375 | N81: 5.5 | O81: 5.625 | P81: 5.75
A82: =A81-0.25 -> 0.25 | B82: 3.875 | C82: 4 | D82: 4.125 | E82: 4.25 | F82: 4.375 | G82: 4.5 | H82: 4.625 | I82: 4.75 | J82: 4.875 | K82: 5 | L82: 5.125 | M82: 5.25 | N82: 5.375 | O82: 5.5 | P82: 5.625
A83: =A82-0.25 -> 0 | B83: 3.75 | C83: 3.875 | D83: 4 | E83: 4.125 | F83: 4.25 | G83: 4.375 | H83: 4.5 | I83: 4.625 | J83: 4.75 | K83: 4.875 | L83: 5 | M83: 5.125 | N83: 5.25 | O83: 5.375 | P83: 5.5
A84: -0.25 | B84: 3.625 | C84: 3.75 | D84: 3.875 | E84: 4 | F84: 4.125 | G84: 4.25 | H84: 4.375 | I84: 4.5 | J84: 4.625 | K84: 4.75 | L84: 4.875 | M84: 5 | N84: 5.125 | O84: 5.25 | P84: 5.375
A85: -0.5 | B85: 3.5 | C85: 3.625 | D85: 3.75 | E85: 3.875 | F85: 4 | G85: 4.125 | H85: 4.25 | I85: 4.375 | J85: 4.5 | K85: 4.625 | L85: 4.75 | M85: 4.875 | N85: 5 | O85: 5.125 | P85: 5.25
A86: -0.75 | B86: 3.375 | C86: 3.5 | D86: 3.625 | E86: 3.75 | F86: 3.875 | G86: 4 | H86: 4.125 | I86: 4.25 | J86: 4.375 | K86: 4.5 | L86: 4.625 | M86: 4.75 | N86: 4.875 | O86: 5 | P86: 5.125
A87: -1 | B87: 3.25 | C87: 3.375 | D87: 3.5 | E87: 3.625 | F87: 3.75 | G87: 3.875 | H87: 4 | I87: 4.125 | J87: 4.25 | K87: 4.375 | L87: 4.5 | M87: 4.625 | N87: 4.75 | O87: 4.875 | P87: 5
A88: -1.25 | B88: 3.125 | C88: 3.25 | D88: 3.375 | E88: 3.5 | F88: 3.625 | G88: 3.75 | H88: 3.875 | I88: 4 | J88: 4.125 | K88: 4.25 | L88: 4.375 | M88: 4.5 | N88: 4.625 | O88: 4.75 | P88: 4.875
A89: -1.5 | B89: 3 | C89: 3.125 | D89: 3.25 | E89: 3.375 | F89: 3.5 | G89: 3.625 | H89: 3.75 | I89: 3.875 | J89: 4 | K89: 4.125 | L89: 4.25 | M89: 4.375 | N89: 4.5 | O89: 4.625 | P89: 4.75
A90: -1.75 | B90: 2.875 | C90: 3 | D90: 3.125 | E90: 3.25 | F90: 3.375 | G90: 3.5 | H90: 3.625 | I90: 3.75 | J90: 3.875 | K90: 4 | L90: 4.125 | M90: 4.25 | N90: 4.375 | O90: 4.5 | P90: 4.625
A91: -2 | B91: 2.75 | C91: 2.875 | D91: 3 | E91: 3.125 | F91: 3.25 | G91: 3.375 | H91: 3.5 | I91: 3.625 | J91: 3.75 | K91: 3.875 | L91: 4 | M91: 4.125 | N91: 4.25 | O91: 4.375 | P91: 4.5
A92: -2.25 | B92: 2.625 | C92: 2.75 | D92: 2.875 | E92: 3 | F92: 3.125 | G92: 3.25 | H92: 3.375 | I92: 3.5 | J92: 3.625 | K92: 3.75 | L92: 3.875 | M92: 4 | N92: 4.125 | O92: 4.25 | P92: 4.375
A93: -2.5 | B93: 2.5 | C93: 2.625 | D93: 2.75 | E93: 2.875 | F93: 3 | G93: 3.125 | H93: 3.25 | I93: 3.375 | J93: 3.5 | K93: 3.625 | L93: 3.75 | M93: 3.875 | N93: 4 | O93: 4.125 | P93: 4.25
A94: -2.75 | B94: 2.375 | C94: 2.5 | D94: 2.625 | E94: 2.75 | F94: 2.875 | G94: 3 | H94: 3.125 | I94: 3.25 | J94: 3.375 | K94: 3.5 | L94: 3.625 | M94: 3.75 | N94: 3.875 | O94: 4 | P94: 4.125
A95: -3 | B95: 2.25 | C95: 2.375 | D95: 2.5 | E95: 2.625 | F95: 2.75 | G95: 2.875 | H95: 3 | I95: 3.125 | J95: 3.25 | K95: 3.375 | L95: 3.5 | M95: 3.625 | N95: 3.75 | O95: 3.875 | P95: 4
A96: -3.25 | B96: 2.125 | C96: 2.25 | D96: 2.375 | E96: 2.5 | F96: 2.625 | G96: 2.75 | H96: 2.875 | I96: 3 | J96: 3.125 | K96: 3.25 | L96: 3.375 | M96: 3.5 | N96: 3.625 | O96: 3.75 | P96: 3.875
A97: -3.5 | B97: 2 | C97: 2.125 | D97: 2.25 | E97: 2.375 | F97: 2.5 | G97: 2.625 | H97: 2.75 | I97: 2.875 | J97: 3 | K97: 3.125 | L97: 3.25 | M97: 3.375 | N97: 3.5 | O97: 3.625 | P97: 3.75
A98: -3.75 | B98: 1.875 | C98: 2 | D98: 2.125 | E98: 2.25 | F98: 2.375 | G98: 2.5 | H98: 2.625 | I98: 2.75 | J98: 2.875 | K98: 3 | L98: 3.125 | M98: 3.25 | N98: 3.375 | O98: 3.5 | P98: 3.625
A99: -4 | B99: 1.75 | C99: 1.875 | D99: 2 | E99: 2.125 | F99: 2.25 | G99: 2.375 | H99: 2.5 | I99: 2.625 | J99: 2.75 | K99: 2.875 | L99: 3 | M99: 3.125 | N99: 3.25 | O99: 3.375 | P99: 3.5
A100: -4.25 | B100: 1.625 | C100: 1.75 | D100: 1.875 | E100: 2 | F100: 2.125 | G100: 2.25 | H100: 2.375 | I100: 2.5 | J100: 2.625 | K100: 2.75 | L100: 2.875 | M100: 3 | N100: 3.125 | O100: 3.25 | P100: 3.375
A101: -4.5 | B101: 1.5 | C101: 1.625 | D101: 1.75 | E101: 1.875 | F101: 2 | G101: 2.125 | H101: 2.25 | I101: 2.375 | J101: 2.5 | K101: 2.625 | L101: 2.75 | M101: 2.875 | N101: 3 | O101: 3.125 | P101: 3.25
A102: -4.75 | B102: 1.375 | C102: 1.5 | D102: 1.625 | E102: 1.75 | F102: 1.875 | G102: 2 | H102: 2.125 | I102: 2.25 | J102: 2.375 | K102: 2.5 | L102: 2.625 | M102: 2.75 | N102: 2.875 | O102: 3 | P102: 3.125
A103: -5 | B103: 1.25 | C103: 1.375 | D103: 1.5 | E103: 1.625 | F103: 1.75 | G103: 1.875 | H103: 2 | I103: 2.125 | J103: 2.25 | K103: 2.375 | L103: 2.5 | M103: 2.625 | N103: 2.75 | O103: 2.875 | P103: 3
A104: -5.25 | B104: 1.125 | C104: 1.25 | D104: 1.375 | E104: 1.5 | F104: 1.625 | G104: 1.75 | H104: 1.875 | I104: 2 | J104: 2.125 | K104: 2.25 | L104: 2.375 | M104: 2.5 | N104: 2.625 | O104: 2.75 | P104: 2.875
A105: -5.5 | B105: 1 | C105: 1.125 | D105: 1.25 | E105: 1.375 | F105: 1.5 | G105: 1.625 | H105: 1.75 | I105: 1.875 | J105: 2 | K105: 2.125 | L105: 2.25 | M105: 2.375 | N105: 2.5 | O105: 2.625 | P105: 2.75
A106: -5.75 | B106: 0.875 | C106: 1 | D106: 1.125 | E106: 1.25 | F106: 1.375 | G106: 1.5 | H106: 1.625 | I106: 1.75 | J106: 1.875 | K106: 2 | L106: 2.125 | M106: 2.25 | N106: 2.375 | O106: 2.5 | P106: 2.625
A107: -6 | B107: 0.75 | C107: 0.875 | D107: 1 | E107: 1.125 | F107: 1.25 | G107: 1.375 | H107: 1.5 | I107: 1.625 | J107: 1.75 | K107: 1.875 | L107: 2 | M107: 2.125 | N107: 2.25 | O107: 2.375 | P107: 2.5
A108: -6.25 | B108: 0.625 | C108: 0.75 | D108: 0.875 | E108: 1 | F108: 1.125 | G108: 1.25 | H108: 1.375 | I108: 1.5 | J108: 1.625 | K108: 1.75 | L108: 1.875 | M108: 2 | N108: 2.125 | O108: 2.25 | P108: 2.375
A109: -6.5 | B109: 0.5 | C109: 0.625 | D109: 0.75 | E109: 0.875 | F109: 1 | G109: 1.125 | H109: 1.25 | I109: 1.375 | J109: 1.5 | K109: 1.625 | L109: 1.75 | M109: 1.875 | N109: 2 | O109: 2.125 | P109: 2.25
A110: -6.75 | B110: 0.375 | C110: 0.5 | D110: 0.625 | E110: 0.75 | F110: 0.875 | G110: 1 | H110: 1.125 | I110: 1.25 | J110: 1.375 | K110: 1.5 | L110: 1.625 | M110: 1.75 | N110: 1.875 | O110: 2 | P110: 2.125
A111: -7 | B111: 0.25 | C111: 0.375 | D111: 0.5 | E111: 0.625 | F111: 0.75 | G111: 0.875 | H111: 1 | I111: 1.125 | J111: 1.25 | K111: 1.375 | L111: 1.5 | M111: 1.625 | N111: 1.75 | O111: 1.875 | P111: 2
A112: -7.25 | B112: 0.125 | C112: 0.25 | D112: 0.375 | E112: 0.5 | F112: 0.625 | G112: 0.75 | H112: 0.875 | I112: 1 | J112: 1.125 | K112: 1.25 | L112: 1.375 | M112: 1.5 | N112: 1.625 | O112: 1.75 | P112: 1.875
A113: -7.5 | B113: 0 | C113: 0.125 | D113: 0.25 | E113: 0.375 | F113: 0.5 | G113: 0.625 | H113: 0.75 | I113: 0.875 | J113: 1 | K113: 1.125 | L113: 1.25 | M113: 1.375 | N113: 1.5 | O113: 1.625 | P113: 1.75
A114: -7.75 | B114: 0 | C114: =4.25+((A114+$C$22)/2) -> 0.75 | D114: 0.125 | E114: 0.25 | F114: 0.375 | G114: 0.5 | H114: 0.625 | I114: 0.75 | J114: 0.875 | K114: 1 | L114: 1.125 | M114: 1.25 | N114: 1.375 | O114: 1.5
A115: -8 | B115: 0 | C115: 0.625 | D115: 0 | E115: 0.125 | F115: 0.25 | G115: 0.375 | H115: 0.5 | I115: 0.625 | J115: 0.75 | K115: 0.875 | L115: 1 | M115: 1.125 | N115: 1.25
A116: -8.25 | B116: 0 | C116: 0.5 | D116: 0 | E116: 0 | F116: 0.125 | G116: 0.25 | H116: 0.375 | I116: 0.5 | J116: 0.625 | K116: 0.75 | L116: 0.875 | M116: 1
A117: =A116-0.25 -> -8.5 | B117: 0 | C117: 0.375 | D117: 0 | E117: 0 | F117: 0 | G117: 0.125 | H117: 0.25 | I117: 0.375 | J117: 0.5 | K117: 0.625 | L117: 0.75
A118: -8.75 | B118: 0 | C118: 0.25 | D118: 0 | E118: 0 | F118: 0 | G118: 0 | H118: 0.125 | I118: 0.25 | J118: 0.375 | K118: 0.5
A119: -9 | B119: 0 | C119: 0.125 | D119: 0 | E119: 0 | F119: 0 | G119: 0 | H119: 0 | I119: 0.125 | J119: 0.25
A120: -9.25 | B120: 0 | C120: 0 | D120: 0 | E120: 0 | F120: 0 | G120: 0 | H120: 0 | I120: 0
A121: -9.5 | B121: 0 | C121: 0 | D121: 0 | E121: 0 | F121: 0 | G121: 0 | H121: 0
A122: -9.75 | B122: 0 | C122: 0 | D122: 0 | E122: 0 | F122: 0 | G122: 0
A123: -10 | B123: 0 | C123: 0 | D123: 0 | E123: 0 | F123: 0
A124: -10.25 | B124: 0 | C124: 0 | D124: 0 | E124: 0
A125: -10.5 | B125: 0 | C125: 0 | D125: 0
A126: -10.75 | B126: 0 | C126: 0
A127: -11 | B127: 0
